fUSD/lending_fUSD_20250308
["ID","MTS","AMOUNT","RATE_DAILY","PERIOD"]
[355622508,1741401051152,-500.0,9.799e-05,2]
[355622509,1741401051162,-1322.65,9.799e-05,2]
[355622510,1741401051173,-500.0,9.799e-05,2]
[355622511,1741401051184,-500.0,9.799e-05,2]
[355622512,1741401051194,-500.0,9.799e-05,2]
[355622513,1741401051203,-500.0,9.799e-05,2]
[355622514,1741401051212,-500.0,9.799e-05,2]
[355622515,1741401051222,-500.0,9.799e-05,2]
[355622516,1741401051232,-500.0,9.799e-05,2]
[355622517,1741401051241,-500.0,9.799e-05,2]
[355622518,1741401051251,-500.0,9.799e-05,2]
[355622519,1741401051261,-500.0,9.799e-05,2]
[355622520,1741401051269,-500.0,9.799e-05,2]
[355622521,1741401051279,-502.13085427,9.799e-05,2]
[355622522,1741401051288,-1342.31,9.799e-05,2]
[355622523,1741401051298,-500.0,9.799e-05,2]
[355622524,1741401051307,-500.0,9.799e-05,2]
[355622525,1741401051317,-1811.67,9.799e-05,2]
[355622526,1741401051326,-500.0,9.799e-05,2]
[355622527,1741401051336,-1225.68,9.799e-05,2]
[355622528,1741401051345,-1221.72,9.799e-05,2]
[355622529,1741401051355,-500.0,9.799e-05,2]
[355622530,1741401051366,-500.0,9.799e-05,2]
[355622531,1741401051378,-500.0,9.799e-05,2]
[355622532,1741401051387,-500.0,9.799e-05,2]
[355622533,1741401051397,-500.0,9.799e-05,2]
[355622534,1741401051407,-500.0,9.799e-05,2]
[355622535,1741401051416,-584.02667948,9.799e-05,2]
[355622536,1741401051425,-500.0,9.799e-05,2]
[355622537,1741401051435,-500.0,9.799e-05,2]
[355622538,1741401051444,-500.0,9.799e-05,2]
[355622539,1741401051585,-500.0,9.799e-05,2]
[355622540,1741401051614,-660.99,9.799e-05,2]
[355622541,1741401051623,-1213.2,9.799e-05,2]
[355622542,1741401051633,-500.0,9.799e-05,2]
[355622543,1741401051643,-500.0,9.799e-05,2]
[355622544,1741401051652,-500.0,9.799e-05,2]
[355622545,1741401051662,-1102.35,9.799e-05,2]
[355622546,1741401051672,-500.0,9.799e-05,2]
[355622547,1741401051682,-1106.87,9.799e-05,2]
[355622548,1741401051691,-1157.66,9.799e-05,2]
[355622549,1741401051700,-500.0,9.799e-05,2]
[355622550,1741401051709,-500.0,9.799e-05,2]
[355622551,1741401051718,-500.0,9.799e-05,2]
[355622552,1741401051727,-500.0,9.799e-05,2]
[355622553,1741401051736,-500.0,9.799e-05,2]
[355622554,1741401051745,-1244.2,9.799e-05,2]
[355622555,1741401051755,-500.0,9.799e-05,2]
[355622556,1741401051764,-1845.02,9.799e-05,2]
[355622557,1741401051773,-500.0,9.799e-05,2]
[355622558,1741401051782,-601.3010458,9.799e-05,2]
[355622559,1741401051791,-500.0,9.799e-05,2]
[355622560,1741401051800,-1844.06,9.799e-05,2]
[355622561,1741401051809,-500.0,9.799e-05,2]
[355622562,1741401051819,-500.66451059,9.799e-05,2]
[355622563,1741401051828,-500.0,9.799e-05,2]
[355622564,1741401051837,-500.0,9.799e-05,2]
[355622565,1741401051847,-1473.38,9.799e-05,2]
[355622566,1741401051856,-500.0,9.799e-05,2]
[355622567,1741401051865,-500.0,9.799e-05,2]
[355622568,1741401051874,-1375.82,9.799e-05,2]
[355622569,1741401051883,-2201.83,9.799e-05,2]
[355622570,1741401051893,-500.0,9.799e-05,2]
[355622571,1741401051902,-1544.05,9.799e-05,2]
[355622572,1741401051911,-500.0,9.799e-05,2]
[355622573,1741401051921,-693.35,9.799e-05,2]
[355622574,1741401051930,-522.11,9.799e-05,2]
[355622575,1741401051939,-212.836364,9.799e-05,2]
[355622576,1741401051949,-501.48112041,9.799e-05,2]
[355622577,1741401051958,-500.0,9.799e-05,2]
[355622578,1741401051967,-500.0,9.799e-05,2]
[355622579,1741401051976,-500.0,9.799e-05,2]
[355622580,1741401051986,-1786.68,9.799e-05,2]
[355622581,1741401051995,-1292.0,9.799e-05,2]
[355622582,1741401052004,-500.0,9.799e-05,2]
[355622583,1741401052014,-522.57,9.799e-05,2]
[355622584,1741401052024,-1585.64,9.799e-05,2]
[355622585,1741401052037,-500.0,9.799e-05,2]
[355622586,1741401052046,-500.0,9.799e-05,2]
[355622587,1741401052055,-500.0,9.799e-05,2]
[355622588,1741401052064,-500.0,9.799e-05,2]
[355622589,1741401052073,-500.0,9.799e-05,2]
[355622590,1741401052083,-500.0,9.799e-05,2]
[355622591,1741401052092,-500.0,9.799e-05,2]
[355622592,1741401052101,-500.0,9.799e-05,2]
[355622593,1741401052110,-500.0,9.799e-05,2]
[355622594,1741401052119,-500.0,9.799e-05,2]
[355622595,1741401052128,-1463.27,9.799e-05,2]
[355622596,1741401052137,-873.72,9.799e-05,2]
[355622597,1741401052146,-2766.36,9.799e-05,2]
[355622598,1741401052155,-500.0,9.799e-05,2]
[355622599,1741401052165,-500.0,9.799e-05,2]
[355622600,1741401052174,-500.0,9.799e-05,2]
[355622601,1741401052182,-500.0,9.799e-05,2]
[355622602,1741401052192,-500.0,9.799e-05,2]
[355622603,1741401052201,-1650.82,9.799e-05,2]
[355622604,1741401052210,-2350.99,9.799e-05,2]
[355622605,1741401052219,-500.0,9.799e-05,2]
[355622606,1741401052229,-750.63,9.799e-05,2]
[355622607,1741401052238,-960.49,9.799e-05,2]
[355622608,1741401052247,-500.0,9.799e-05,2]
[355622609,1741401052256,-500.0,9.799e-05,2]
[355622610,1741401052266,-513.48761727,9.799e-05,2]
[355622611,1741401052275,-500.0,9.799e-05,2]
[355622612,1741401052284,-500.0,9.799e-05,2]
[355622613,1741401052293,-500.71323188,9.799e-05,2]
[355622614,1741401052302,-2092.08,9.799e-05,2]
[355622615,1741401052312,-500.0,9.799e-05,2]
[355622616,1741401052322,-1874.89,9.799e-05,2]
[355622617,1741401052331,-500.0,9.799e-05,2]
[355622618,1741401052340,-500.0,9.799e-05,2]
[355622619,1741401052350,-500.0,9.799e-05,2]
[355622620,1741401052360,-1242.75,9.799e-05,2]
[355622621,1741401052374,-500.0,9.799e-05,2]
[355622622,1741401052383,-500.0,9.799e-05,2]
[355622623,1741401052392,-1189.13,9.799e-05,2]
[355622624,1741401052402,-2116.45,9.799e-05,2]
[355622625,1741401052412,-647.21647413,9.799e-05,2]
[355622626,1741401052421,-500.0,9.799e-05,2]
[355622627,1741401052430,-500.0,9.799e-05,2]
[355622628,1741401052439,-966.66,9.799e-05,2]
[355622629,1741401052449,-500.0,9.799e-05,2]
[355622630,1741401052459,-500.0,9.799e-05,2]
[355622631,1741401052468,-500.0,9.799e-05,2]
[355622632,1741401052478,-507.66200865,9.799e-05,2]
[355622633,1741401052488,-4690.76,9.799e-05,2]
[355622634,1741401052497,-1742.47,9.799e-05,2]
[355622635,1741401052506,-863.45,9.799e-05,2]
[355622636,1741401052516,-1088.32,9.799e-05,2]
[355622637,1741401052525,-314.38288367,9.799e-05,2]
[355622638,1741401052535,-1642.72,9.799e-05,2]
[355622639,1741401052546,-500.0,9.799e-05,2]
[355622640,1741401052555,-500.0,9.799e-05,2]
[355622641,1741401052564,-1748.42,9.799e-05,2]
[355622642,1741401052574,-500.0,9.799e-05,2]
[355622643,1741401052583,-500.0,9.799e-05,2]
[355622644,1741401052592,-7875.72,9.799e-05,2]
[355622645,1741401052603,-500.0,9.799e-05,2]
[355622646,1741401052614,-500.0,9.799e-05,2]
[355622647,1741401052623,-1174.41,9.799e-05,2]
[355622648,1741401052633,-500.0,9.799e-05,2]
[355622649,1741401052643,-52868.35,9.799e-05,2]
[355622650,1741401052652,-500.0,9.799e-05,2]
[355622651,1741401052662,-500.0,9.799e-05,2]
[355622652,1741401052670,-889.2,9.799e-05,2]
[355622653,1741401052679,-728.75,9.799e-05,2]
[355622654,1741401052690,-500.0,9.799e-05,2]
[355622655,1741401052701,-500.0,9.799e-05,2]
[355622656,1741401052710,-6250.53,9.799e-05,2]
[355622657,1741401052719,-1449.26,9.799e-05,2]
[355622658,1741401052729,-2043.37,9.799e-05,2]
[355622659,1741401052739,-500.0,9.799e-05,2]
[355622660,1741401052749,-500.0,9.799e-05,2]
[355622661,1741401052758,-500.0,9.799e-05,2]
[355622662,1741401052768,-500.0,9.799e-05,2]
[355622663,1741401052778,-500.0,9.799e-05,2]
[355622664,1741401052787,-500.0,9.799e-05,2]
[355622665,1741401052797,-1980.41,9.799e-05,2]
[355622666,1741401052808,-500.0,9.799e-05,2]
[355622667,1741401052818,-1261.73,9.799e-05,2]
[355622668,1741401052827,-500.0,9.799e-05,2]
[355622669,1741401052837,-500.0,9.799e-05,2]
[355622670,1741401052848,-500.0,9.799e-05,2]
[355622671,1741401052859,-1628.51,9.799e-05,2]
[355622672,1741401052868,-504.23920041,9.799e-05,2]
[355622673,1741401052878,-500.0,9.799e-05,2]
[355622674,1741401052888,-4744.64,9.799e-05,2]
[355622675,1741401052897,-1107.18,9.799e-05,2]
[355622676,1741401052907,-1606.7,9.799e-05,2]
[355622677,1741401052916,-9838.0,9.799e-05,2]
[355622678,1741401052925,-500.0,9.799e-05,2]
[355622679,1741401052936,-958.58,9.799e-05,2]
[355622680,1741401052946,-500.0,9.799e-05,2]
[355622681,1741401052956,-500.0,9.799e-05,2]
[355622682,1741401052967,-3351.64,9.799e-05,2]
[355622683,1741401052977,-846.11,9.799e-05,2]
[355622684,1741401052988,-500.0,9.799e-05,2]
[355622685,1741401052998,-531.07064975,9.799e-05,2]
[355622686,1741401053008,-10384.09,9.799e-05,2]
[355622687,1741401053018,-3047.44,9.799e-05,2]
[355622688,1741401053027,-500.0,9.799e-05,2]
[355622689,1741401053037,-922.68,9.799e-05,2]
[355622690,1741401053046,-923.31,9.799e-05,2]
[355622691,1741401053056,-508.89054917,9.799e-05,2]
[355622692,1741401053066,-3175.01,9.799e-05,2]
[355622693,1741401053076,-1594.1,9.799e-05,2]
[355622694,1741401053086,-8435.06,9.799e-05,2]
[355622695,1741401053097,-500.0,9.799e-05,2]
[355622696,1741401053107,-500.0,9.799e-05,2]
[355622697,1741401053118,-151.0,9.799e-05,2]
[355622698,1741401053128,-151.0,9.799e-05,2]
[355622699,1741401053138,-151.0,9.799e-05,2]
[355622700,1741401053148,-151.0,9.799e-05,2]
[355622701,1741401053158,-151.0,9.799e-05,2]
[355622702,1741401053169,-151.0,9.799e-05,2]
[355622703,1741401053179,-151.0,9.799e-05,2]
[355622704,1741401053189,-151.0,9.799e-05,2]
[355622705,1741401053199,-151.0,9.799e-05,2]
[355622706,1741401053208,-151.0,9.799e-05,2]
[355622707,1741401053219,-500.0,9.799e-05,2]
[355622708,1741401053228,-151.0,9.799e-05,2]
[355622709,1741401053237,-500.0,9.799e-05,2]
[355622710,1741401053246,-151.0,9.799e-05,2]
[355622711,1741401053256,-151.0,9.799e-05,2]
[355622712,1741401053265,-151.0,9.799e-05,2]
[355622713,1741401053274,-151.0,9.799e-05,2]
[355622714,1741401053286,-151.0,9.799e-05,2]
[355622715,1741401053295,-500.0,9.799e-05,2]
[355622716,1741401053305,-151.0,9.799e-05,2]
[355622717,1741401053315,-151.0,9.799e-05,2]
[355622718,1741401053324,-151.0,9.799e-05,2]
[355622719,1741401053333,-151.0,9.799e-05,2]
[355622720,1741401053343,-151.0,9.799e-05,2]
[355622721,1741401053353,-151.0,9.799e-05,2]
[355622722,1741401053362,-958.01,9.799e-05,2]
[355622723,1741401053376,-500.0,9.799e-05,2]
[355622724,1741401053385,-151.0,9.799e-05,2]
[355622725,1741401053394,-151.0,9.799e-05,2]
[355622726,1741401053403,-523.11970316,9.799e-05,2]
[355622727,1741401053413,-151.0,9.799e-05,2]
[355622728,1741401053423,-151.0,9.799e-05,2]
[355622729,1741401053432,-151.0,9.799e-05,2]
[355622730,1741401053443,-151.0,9.799e-05,2]
[355622731,1741401053453,-151.0,9.799e-05,2]
[355622732,1741401053463,-151.0,9.799e-05,2]
[355622733,1741401053473,-151.0,9.799e-05,2]
[355622734,1741401053482,-151.0,9.799e-05,2]
[355622735,1741401053492,-151.0,9.799e-05,2]
[355622736,1741401053502,-151.0,9.799e-05,2]
[355622737,1741401053513,-500.0,9.799e-05,2]
[355622738,1741401053523,-151.0,9.799e-05,2]
[355622739,1741401053532,-151.0,9.799e-05,2]
[355622740,1741401053542,-504.14970068,9.799e-05,2]
[355622741,1741401053551,-151.0,9.799e-05,2]
[355622742,1741401053560,-151.0,9.799e-05,2]
[355622743,1741401053570,-151.0,9.799e-05,2]
[355622744,1741401053579,-1172.02,9.799e-05,2]
[355622745,1741401053589,-151.0,9.799e-05,2]
[355622746,1741401053598,-151.0,9.799e-05,2]
[355622747,1741401053607,-7370.55,9.799e-05,2]
[355622748,1741401053616,-151.0,9.799e-05,2]
[355622749,1741401053625,-151.0,9.799e-05,2]
[355622750,1741401053635,-500.0,9.799e-05,2]
[355622751,1741401053644,-151.0,9.799e-05,2]
[355622752,1741401053653,-151.0,9.799e-05,2]
[355622753,1741401053663,-151.0,9.799e-05,2]
[355622754,1741401053673,-151.0,9.799e-05,2]
[355622755,1741401053684,-151.0,9.799e-05,2]
[355622756,1741401053694,-507.40970141,9.799e-05,2]
[355622757,1741401053703,-763.94,9.799e-05,2]
[355622758,1741401053714,-151.0,9.799e-05,2]
[355622759,1741401053724,-211.81267376,9.799e-05,2]
[355622760,1741401053735,-623.6896476,9.799e-05,2]
[355622761,1741401053743,-500.0,9.799e-05,2]
[355622762,1741401053753,-519.00145365,9.799e-05,2]
[355622763,1741401053763,-2031.65,9.799e-05,2]
[355622764,1741401053772,-507.6526979,9.799e-05,2]
[355622765,1741401053782,-500.0,9.799e-05,2]
[355622766,1741401053792,-500.0,9.799e-05,2]
[355622767,1741401053801,-500.0,9.799e-05,2]
[355622768,1741401053810,-500.0,9.799e-05,2]
[355622769,1741401053819,-500.0,9.799e-05,2]
[355622770,1741401053828,-500.0,9.799e-05,2]
[355622771,1741401053837,-3719.68,9.799e-05,2]
[355622772,1741401053846,-500.0,9.799e-05,2]
[355622773,1741401053856,-1952.79,9.799e-05,2]
[355622774,1741401053866,-500.0,9.799e-05,2]
[355622775,1741401053875,-500.0,9.799e-05,2]
[355622776,1741401053884,-500.0,9.799e-05,2]
[355622777,1741401053893,-500.0,9.799e-05,2]
[355622778,1741401053903,-500.0,9.799e-05,2]
[355622779,1741401053912,-741.85,9.799e-05,2]
[355622780,1741401053921,-500.0,9.799e-05,2]
[355622781,1741401053931,-500.0,9.799e-05,2]
[355622782,1741401053940,-10096.15,9.799e-05,2]
[355622783,1741401053949,-500.0,9.799e-05,2]
[355622784,1741401053959,-1613.25,9.799e-05,2]
[355622785,1741401053967,-500.0,9.799e-05,2]
[355622786,1741401053977,-2841.87,9.799e-05,2]
[355622787,1741401053986,-500.0,9.799e-05,2]
[355622788,1741401053995,-3777.49,9.799e-05,2]
[355622789,1741401054004,-529.74490497,9.799e-05,2]
[355622790,1741401054164,-524.27635205,9.799e-05,2]
[355622791,1741401054173,-20080.4,9.799e-05,2]
[355622792,1741401054183,-1107.34836871,9.799e-05,2]
[355622793,1741401054192,-500.0,9.799e-05,2]
[355622794,1741401054201,-500.0,9.799e-05,2]
[355622795,1741401054211,-2852.46,9.799e-05,2]
[355622796,1741401054220,-500.0,9.799e-05,2]
[355622797,1741401054229,-1113.74,9.799e-05,2]
[355622798,1741401054239,-500.0,9.799e-05,2]
[355622799,1741401054248,-500.0,9.799e-05,2]
[355622800,1741401054258,-8113.84,9.799e-05,2]
[355622801,1741401054267,-500.0,9.799e-05,2]
[355622802,1741401054276,-500.0,9.799e-05,2]
[355622803,1741401054286,-504.48826551,9.799e-05,2]
[355622804,1741401054295,-500.0,9.799e-05,2]
[355622805,1741401054305,-500.0,9.799e-05,2]
[355622806,1741401054314,-500.0,9.799e-05,2]
[355622807,1741401054323,-1464.14,9.799e-05,2]
[355622808,1741401054333,-500.0,9.799e-05,2]
[355622809,1741401054343,-845.62,9.799e-05,2]
[355622810,1741401054352,-500.0,9.799e-05,2]
[355622811,1741401054363,-500.0,9.799e-05,2]
[355622812,1741401054375,-500.0,9.799e-05,2]
[355622813,1741401054384,-985.93,9.799e-05,2]
[355622814,1741401054393,-3818.01,9.799e-05,2]
[355622815,1741401054403,-500.0,9.799e-05,2]
[355622816,1741401054412,-501.57633495,9.799e-05,2]
[355622817,1741401054422,-3934.36,9.799e-05,2]
[355622818,1741401054431,-500.0,9.799e-05,2]
[355622819,1741401054441,-158.2891317,9.799e-05,2]
[355622820,1741401054450,-500.0,9.799e-05,2]
[355622821,1741401054459,-500.0,9.799e-05,2]
[355622822,1741401054470,-575.35726622,9.799e-05,2]
[355622823,1741401054479,-1566.29,9.799e-05,2]
[355622824,1741401054488,-500.0,9.799e-05,2]
[355622825,1741401054498,-500.0,9.799e-05,2]
[355622826,1741401054508,-399856.80409809,9.8e-05,2]
[355622827,1741401054518,-5000.0,9.8e-05,2]
[355622828,1741401054529,-766.0,9.829e-05,2]
[355622829,1741401054539,-813.9466044,9.9e-05,2]
[355622830,1741401054549,-813.9466044,9.9e-05,2]
[355622831,1741401054560,-813.9466044,9.9e-05,2]
[355622832,1741401054569,-813.9466044,9.9e-05,2]
[355622833,1741401054578,-813.9466044,9.9e-05,2]
[355622834,1741401054587,-813.9466044,9.9e-05,2]
[355622835,1741401054597,-813.9466044,9.9e-05,2]
[355622836,1741401054607,-813.9466044,9.9e-05,2]
[355622837,1741401054616,-813.9466044,9.9e-05,2]
[355622838,1741401054626,-813.9466044,9.9e-05,2]
[355622839,1741401054635,-150.0,9.91e-05,2]
[355622840,1741401054645,-150.0,9.91e-05,2]
[355622841,1741401054654,-677.011,9.918e-05,2]
[355622842,1741401054663,-154.16,9.92e-05,2]
[355622843,1741401054672,-700.92,9.92e-05,2]
[355622844,1741401054681,-3827.0,9.945e-05,2]
[355622845,1741401054690,-8500.0,9.956e-05,2]
[355622846,1741401054700,-8500.0,9.965e-05,2]
[355622847,1741401054709,-8500.0,9.974e-05,2]
[355622848,1741401054718,-8500.0,9.974e-05,2]
[355622849,1741401054727,-151.274,9.977e-05,2]
[355622850,1741401054737,-506.22265135,9.981e-05,2]
[355622851,1741401054746,-500.0,9.981e-05,2]
[355622852,1741401054755,-500.0,9.981e-05,2]
[355622853,1741401054765,-500.0,9.981e-05,2]
[355622854,1741401054774,-500.0,9.981e-05,2]
[355622855,1741401054785,-500.0,9.981e-05,2]
[355622856,1741401054796,-500.0,9.981e-05,2]
[355622857,1741401054807,-500.0,9.981e-05,2]
[355622858,1741401054816,-500.0,9.981e-05,2]
[355622859,1741401054827,-500.0,9.981e-05,2]
[355622860,1741401054836,-151.0,9.982e-05,2]
[355622861,1741401054846,-500.0,9.982e-05,2]
[355622862,1741401054856,-500.0,9.982e-05,2]
[355622863,1741401054866,-500.0,9.982e-05,2]
[355622864,1741401054875,-500.0,9.982e-05,2]
[355622865,1741401054885,-500.0,9.982e-05,2]
[355622866,1741401054894,-500.0,9.982e-05,2]
[355622867,1741401054903,-500.0,9.982e-05,2]
[355622868,1741401054912,-284.28483068,9.982e-05,2]
[355622869,1741401054921,-500.0,9.982e-05,2]
[355622870,1741401054931,-500.0,9.982e-05,2]
[355622871,1741401054940,-8500.0,9.982e-05,2]
[355622872,1741401054949,-8500.0,9.982e-05,2]
[355622873,1741401054959,-504.671542,9.983e-05,2]
[355622874,1741401054969,-504.671542,9.983e-05,2]
[355622875,1741401054978,-504.671542,9.983e-05,2]
[355622876,1741401054988,-504.671542,9.983e-05,2]
[355622877,1741401054998,-500.0,9.983e-05,2]
[355622878,1741401055007,-500.0,9.983e-05,2]
[355622879,1741401055017,-500.0,9.983e-05,2]
[355622880,1741401055027,-211.00630147,9.983e-05,2]
[355622881,1741401055037,-500.0,9.983e-05,2]
[355622882,1741401055046,-500.0,9.983e-05,2]
[355622883,1741401055055,-500.0,9.983e-05,2]
[355622884,1741401055065,-500.0,9.983e-05,2]
[355622885,1741401055075,-605.31763365,9.983e-05,2]
[355622886,1741401055084,-301.52847551,9.983e-05,2]
[355622887,1741401055094,-513.64675207,9.983e-05,2]
[355622888,1741401055103,-301.61374571,9.983e-05,2]
[355622889,1741401055114,-500.0,9.983e-05,2]
[355622890,1741401055124,-501.30686836,9.983e-05,2]
[355622891,1741401055134,-501.52679746,9.983e-05,2]
[355622892,1741401055144,-500.0,9.983e-05,2]
[355622893,1741401055155,-500.0,9.983e-05,2]
[355622894,1741401055165,-500.0,9.983e-05,2]
[355622895,1741401055175,-500.0,9.983e-05,2]
[355622896,1741401055184,-500.42376506,9.983e-05,2]
[355622897,1741401055195,-500.0,9.983e-05,2]
[355622898,1741401055207,-500.0,9.983e-05,2]
[355622899,1741401055216,-300.0,9.983e-05,2]
[355622900,1741401055226,-500.0,9.983e-05,2]
[355622901,1741401055236,-500.0,9.983e-05,2]
[355622902,1741401055246,-500.0,9.983e-05,2]
[355622903,1741401055255,-500.0,9.983e-05,2]
[355622904,1741401055265,-500.0,9.983e-05,2]
[355622905,1741401055275,-500.0,9.983e-05,2]
[355622906,1741401055285,-500.0,9.983e-05,2]
[355622907,1741401055295,-500.0,9.983e-05,2]
[355622908,1741401055304,-501.15630572,9.983e-05,2]
[355622909,1741401055314,-500.0,9.983e-05,2]
[355622910,1741401055323,-500.0,9.983e-05,2]
[355622911,1741401055332,-328.39328346,9.983e-05,2]
[355622912,1741401055342,-500.0,9.983e-05,2]
[355622913,1741401055351,-500.70337679,9.983e-05,2]
[355622914,1741401055362,-469.8103577,9.983e-05,2]
[355622915,1741401055375,-515.49864983,9.983e-05,2]
[355622916,1741401055385,-500.0,9.983e-05,2]
[355622917,1741401055395,-515.7182108,9.983e-05,2]
[355622918,1741401055405,-500.0,9.983e-05,2]
[355622919,1741401055414,-500.0,9.983e-05,2]
[355622920,1741401055424,-500.0,9.983e-05,2]
[355622921,1741401055433,-509.10093333,9.983e-05,2]
[355622922,1741401055442,-500.0,9.983e-05,2]
[355622923,1741401055452,-500.0,9.983e-05,2]
[355622924,1741401055462,-326.32602943,9.983e-05,2]
[355622925,1741401055471,-503.35941309,9.983e-05,2]
[355622926,1741401055480,-293.2513583,9.983e-05,2]
[355622927,1741401055490,-501.05050429,9.983e-05,2]
[355622928,1741401055499,-510.66754818,9.983e-05,2]
[355622929,1741401055508,-524.56045713,9.983e-05,2]
[355622930,1741401055518,-508.08258089,9.983e-05,2]
[355622931,1741401055528,-500.0,9.983e-05,2]
[355622932,1741401055537,-1053.02,9.983e-05,2]
[355622933,1741401055547,-500.0,9.983e-05,2]
[355622934,1741401055556,-500.0,9.983e-05,2]
[355622935,1741401055566,-500.0,9.983e-05,2]
[355622936,1741401055576,-500.0,9.983e-05,2]
[355622937,1741401055585,-500.0,9.983e-05,2]
[355622938,1741401055595,-500.0,9.983e-05,2]
[355622939,1741401055605,-500.0,9.983e-05,2]
[355622940,1741401055615,-500.0,9.983e-05,2]
[355622941,1741401055625,-500.0,9.983e-05,2]
[355622942,1741401055634,-500.0,9.983e-05,2]
[355622943,1741401055643,-527.07943717,9.983e-05,2]
[355622944,1741401055654,-1489.27,9.983e-05,2]
[355622945,1741401055664,-500.0,9.983e-05,2]
[355622946,1741401055673,-500.0,9.983e-05,2]
[355622947,1741401055684,-500.0,9.983e-05,2]
[355622948,1741401055693,-500.0,9.983e-05,2]
[355622949,1741401055703,-500.0,9.983e-05,2]
[355622950,1741401055712,-560.13,9.983e-05,2]
[355622951,1741401055721,-1174.93,9.983e-05,2]
[355622952,1741401055731,-500.0,9.983e-05,2]
[355622953,1741401055740,-500.0,9.983e-05,2]
[355622954,1741401055749,-200.65386368,9.983e-05,2]
[355622955,1741401055758,-500.0,9.983e-05,2]
[355622956,1741401055768,-500.0,9.983e-05,2]
[355622957,1741401055778,-500.0,9.983e-05,2]
[355622958,1741401055787,-1218.44,9.983e-05,2]
[355622959,1741401055797,-500.0,9.983e-05,2]
[355622960,1741401055806,-485.5469266,9.983e-05,2]
[355622961,1741401055815,-500.0,9.983e-05,2]
[355622962,1741401055824,-500.0,9.983e-05,2]
[355622963,1741401055833,-500.0,9.983e-05,2]
[355622964,1741401055843,-500.0,9.983e-05,2]
[355622965,1741401055857,-500.0,9.983e-05,2]
[355622966,1741401055866,-1850.9,9.983e-05,2]
[355622967,1741401055876,-500.0,9.983e-05,2]
[355622968,1741401055885,-500.0,9.983e-05,2]
[355622969,1741401055894,-500.0,9.983e-05,2]
[355622970,1741401055903,-501.94898216,9.983e-05,2]
[355622971,1741401055914,-501.39517346,9.983e-05,2]
[355622972,1741401055923,-500.0,9.983e-05,2]
[355622973,1741401055933,-500.0,9.983e-05,2]
[355622974,1741401055942,-500.0,9.983e-05,2]
[355622975,1741401055958,-350.0,9.983e-05,2]
[355622976,1741401055970,-500.0,9.983e-05,2]
[355622977,1741401055979,-519.93867907,9.983e-05,2]
[355622978,1741401055989,-500.0,9.983e-05,2]
[355622979,1741401055998,-500.0,9.983e-05,2]
[355622980,1741401056008,-514.98827061,9.983e-05,2]
[355622981,1741401056019,-1032.68,9.983e-05,2]
[355622982,1741401056028,-500.0,9.983e-05,2]
[355622983,1741401056037,-500.0,9.983e-05,2]
[355622984,1741401056047,-500.0,9.983e-05,2]
[355622985,1741401056056,-500.0,9.983e-05,2]
[355622986,1741401056068,-1613.31,9.983e-05,2]
[355622987,1741401056078,-500.0,9.983e-05,2]
[355622988,1741401056088,-1496.38,9.983e-05,2]
[355622989,1741401056100,-500.0,9.983e-05,2]
[355622990,1741401056111,-605.30131378,9.983e-05,2]
[355622991,1741401056122,-500.0,9.983e-05,2]
[355622992,1741401056133,-516.75682093,9.983e-05,2]
[355622993,1741401056143,-1033.99,9.983e-05,2]
[355622994,1741401056154,-990.56,9.983e-05,2]
[355622995,1741401056164,-500.0,9.983e-05,2]
[355622996,1741401056173,-500.0,9.983e-05,2]
[355622997,1741401056185,-500.0,9.983e-05,2]
[355622998,1741401056196,-985.53,9.983e-05,2]
[355622999,1741401056207,-500.0,9.983e-05,2]
[355623000,1741401056216,-500.0,9.983e-05,2]
[355623001,1741401056225,-500.0,9.983e-05,2]
[355623002,1741401056235,-1717.86,9.983e-05,2]
[355623003,1741401056244,-500.0,9.983e-05,2]
[355623004,1741401056255,-1566.37,9.983e-05,2]
[355623005,1741401056265,-500.0,9.983e-05,2]
[355623006,1741401056275,-1094.88,9.983e-05,2]
[355623007,1741401056284,-500.0,9.983e-05,2]